[Event "*** Titled Tuesday Blitz"]
[Site "Chess.com"]
[Date "2020.10.20"]
[Round "6"]
[White "ChronicUnhappiness"]
[Black "Susal_De_Silva"]
[Result "0-1"]
[WhiteElo "2285"]
[BlackElo "2422"]
[TimeControl "180+1"]
[EndTime "11:08:21 PDT"]
[Termination "Susal_De_Silva won on time"]

1. c4 {[%clk 0:03:00.9]} 1... e5 {[%clk 0:02:59.1]} 2. g3 {[%clk 0:02:59.3]}
2... Nf6 {[%clk 0:02:59.1]} 3. Bg2 {[%clk 0:02:59.5]} 3... d5 {[%clk 0:02:59.3]}
4. cxd5 {[%clk 0:02:59]} 4... Nxd5 {[%clk 0:03:00.2]} 5. Nc3 {[%clk 0:02:59.4]}
5... Nb6 {[%clk 0:03:00.1]} 6. Nf3 {[%clk 0:02:59.2]} 6... Nc6 {[%clk
0:03:00.3]} 7. O-O {[%clk 0:02:59.3]} 7... Be7 {[%clk 0:03:00.5]} 8. a3 {[%clk
0:02:59.7]} 8... a5 {[%clk 0:02:59.6]} 9. e3 {[%clk 0:02:48]} 9... O-O {[%clk
0:02:48.4]} 10. d4 {[%clk 0:02:47.4]} 10... exd4 {[%clk 0:02:46.9]} 11. Nxd4
{[%clk 0:02:32.3]} 11... Nxd4 {[%clk 0:02:45.1]} 12. exd4 {[%clk 0:02:31.9]}
12... Bf6 {[%clk 0:02:45.4]} 13. Be3 {[%clk 0:02:22.4]} 13... Nc4 {[%clk
0:02:42.5]} 14. Qe2 {[%clk 0:01:56.4]} 14... Nd6 {[%clk 0:02:39.9]} 15. Nd5
{[%clk 0:01:49.8]} 15... c6 {[%clk 0:02:37.5]} 16. Nxf6+ {[%clk 0:01:48.9]}
16... Qxf6 {[%clk 0:02:38.4]} 17. d5 {[%clk 0:01:44.6]} 17... cxd5 {[%clk
0:02:37.3]} 18. Bxd5 {[%clk 0:01:44.3]} 18... Bh3 {[%clk 0:02:37.8]} 19. Rfd1
{[%clk 0:01:42.6]} 19... Rfe8 {[%clk 0:02:28.4]} 20. Qf3 {[%clk 0:01:42.1]}
20... Qg6 {[%clk 0:02:21.9]} 21. Bc5 {[%clk 0:01:30.4]} 21... Bg4 {[%clk
0:02:17.5]} 22. Qd3 {[%clk 0:01:07.4]} 22... Bxd1 {[%clk 0:02:07.5]} 23. Qxg6
{[%clk 0:01:05.7]} 23... hxg6 {[%clk 0:02:05.8]} 24. Rxd1 {[%clk 0:01:06.6]}
24... Nf5 {[%clk 0:02:01.2]} 25. Bxb7 {[%clk 0:01:01]} 25... Rab8 {[%clk
0:01:59.3]} 26. Rd7 {[%clk 0:00:57.2]} 26... Re1+ {[%clk 0:01:36.2]} 27. Kg2
{[%clk 0:00:56.7]} 27... Re2 {[%clk 0:01:34.3]} 28. b4 {[%clk 0:00:53.5]} 28...
a4 {[%clk 0:01:30.8]} 29. Bd5 {[%clk 0:00:51.9]} 29... Nh6 {[%clk 0:01:22.6]}
30. Be3 {[%clk 0:00:39.3]} 30... Kh7 {[%clk 0:01:12]} 31. Kf3 {[%clk 0:00:21.7]}
31... Rc2 {[%clk 0:01:04.9]} 32. g4 {[%clk 0:00:21.2]} 32... Rc3 {[%clk
0:01:02.2]} 33. Kf4 {[%clk 0:00:12.4]} 33... Rxa3 {[%clk 0:00:59.5]} 34. Bc5
{[%clk 0:00:11.9]} 34... Rd3 {[%clk 0:00:49.7]} 35. Ke4 {[%clk 0:00:06.2]} 35...
Rd1 {[%clk 0:00:47]} 36. g5 {[%clk 0:00:05.7]} 36... Nf5 {[%clk 0:00:45.3]} 37.
Kf4 {[%clk 0:00:01.3]} 37... a3 {[%clk 0:00:43.1]} 0-1

[Event "*** Titled Tuesday Blitz"]
[Site "Chess.com"]
[Date "2020.10.20"]
[Round "6"]
[White "GM_Levan_Pantsulaia"]
[Black "PavelShkapenko"]
[Result "1-0"]
[WhiteElo "2858"]
[BlackElo "2703"]
[TimeControl "180+1"]
[EndTime "11:08:23 PDT"]
[Termination "GM_Levan_Pantsulaia won by resignation"]

1. Nf3 {[%clk 0:03:00.9]} 1... Nf6 {[%clk 0:02:59.6]} 2. g3 {[%clk 0:03:01.1]}
2... d5 {[%clk 0:02:59.3]} 3. Bg2 {[%clk 0:03:01]} 3... c6 {[%clk 0:02:59.9]} 4.
c4 {[%clk 0:03:00.3]} 4... dxc4 {[%clk 0:02:49.7]} 5. O-O {[%clk 0:02:59.4]}
5... Nbd7 {[%clk 0:02:45.3]} 6. Qc2 {[%clk 0:02:54.9]} 6... e5 {[%clk
0:02:25.1]} 7. Qxc4 {[%clk 0:02:53.7]} 7... Bd6 {[%clk 0:02:25.1]} 8. d3 {[%clk
0:02:46.6]} 8... O-O {[%clk 0:02:24.3]} 9. Qc2 {[%clk 0:02:40]} 9... Re8 {[%clk
0:02:22]} 10. Nbd2 {[%clk 0:02:37.2]} 10... Bc7 {[%clk 0:02:18.5]} 11. b3 {[%clk
0:02:32.2]} 11... Nd5 {[%clk 0:01:50.5]} 12. Bb2 {[%clk 0:02:31.8]} 12... Nf8
{[%clk 0:01:46.1]} 13. a3 {[%clk 0:02:27.1]} 13... a5 {[%clk 0:01:45.1]} 14. e4
{[%clk 0:02:18.1]} 14... Nb6 {[%clk 0:01:41.9]} 15. d4 {[%clk 0:02:16.6]} 15...
exd4 {[%clk 0:01:41.3]} 16. Nxd4 {[%clk 0:02:17.5]} 16... a4 {[%clk 0:01:13.3]}
17. b4 {[%clk 0:02:16.9]} 17... Be6 {[%clk 0:01:12.5]} 18. Rad1 {[%clk 0:01:59]}
18... Qc8 {[%clk 0:01:09.4]} 19. Rfe1 {[%clk 0:01:54.8]} 19... Bh3 {[%clk
0:01:07.2]} 20. Bh1 {[%clk 0:01:54.6]} 20... Ng6 {[%clk 0:01:02.7]} 21. Nf5
{[%clk 0:01:43.7]} 21... Be5 {[%clk 0:00:55.6]} 22. Bxe5 {[%clk 0:01:39.5]}
22... Rxe5 {[%clk 0:00:55.7]} 23. Nf3 {[%clk 0:01:30.6]} 23... Re6 {[%clk
0:00:41.4]} 24. Ng5 {[%clk 0:01:22.7]} 24... Bxf5 {[%clk 0:00:41.2]} 25. exf5
{[%clk 0:01:23.2]} 25... Rxe1+ {[%clk 0:00:41.8]} 26. Rxe1 {[%clk 0:01:23.6]}
26... Nf8 {[%clk 0:00:42.4]} 27. Re7 {[%clk 0:01:10.1]} 27... Qd8 {[%clk
0:00:42.4]} 28. Rxb7 {[%clk 0:01:06.9]} 28... Qxg5 {[%clk 0:00:38.6]} 29. Rxb6
{[%clk 0:01:06.9]} 29... Rd8 {[%clk 0:00:39.1]} 30. h4 {[%clk 0:00:58.9]} 30...
Qg4 {[%clk 0:00:36.5]} 31. Bxc6 {[%clk 0:00:51]} 31... Rd1+ {[%clk 0:00:34.9]}
32. Kg2 {[%clk 0:00:51]} 32... Rd6 {[%clk 0:00:24.6]} 33. Bf3 {[%clk 0:00:45.2]}
33... Qd4 {[%clk 0:00:23.3]} 34. Rxd6 {[%clk 0:00:42]} 34... Qxd6 {[%clk
0:00:23.8]} 35. Qc5 {[%clk 0:00:42.5]} 35... Qd3 {[%clk 0:00:18.9]} 36. b5
{[%clk 0:00:41.2]} 36... h5 {[%clk 0:00:18.3]} 37. b6 {[%clk 0:00:39.5]} 37...
Nd7 {[%clk 0:00:18.5]} 38. Qc8+ {[%clk 0:00:39.1]} 38... Kh7 {[%clk 0:00:18.1]}
39. b7 {[%clk 0:00:39.1]} 39... Qd6 {[%clk 0:00:18.1]} 40. Qxd7 {[%clk
0:00:37.5]} 1-0

[Event "*** Titled Tuesday Blitz"]
[Site "Chess.com"]
[Date "2020.10.20"]
[Round "6"]
[White "kleinebeer98"]
[Black "PriSachu"]
[Result "1-0"]
[WhiteElo "2628"]
[BlackElo "2444"]
[TimeControl "180+1"]
[EndTime "11:08:26 PDT"]
[Termination "kleinebeer98 won on time"]

1. e4 {[%clk 0:02:49.3]} 1... e5 {[%clk 0:02:59.4]} 2. Nf3 {[%clk 0:02:48.2]}
2... Nc6 {[%clk 0:02:59.6]} 3. Nc3 {[%clk 0:02:44.6]} 3... Nf6 {[%clk
0:02:58.8]} 4. a3 {[%clk 0:02:44.3]} 4... g6 {[%clk 0:02:47.2]} 5. Nxe5 {[%clk
0:02:42.6]} 5... Nxe5 {[%clk 0:02:42.7]} 6. d4 {[%clk 0:02:42.3]} 6... Nc6
{[%clk 0:02:34.5]} 7. d5 {[%clk 0:02:42.6]} 7... Nb8 {[%clk 0:02:32.7]} 8. e5
{[%clk 0:02:36.9]} 8... Ng8 {[%clk 0:02:22.4]} 9. d6 {[%clk 0:02:30.7]} 9...
cxd6 {[%clk 0:02:02.9]} 10. exd6 {[%clk 0:02:31.6]} 10... Qf6 {[%clk 0:01:55.9]}
11. Nd5 {[%clk 0:02:28.6]} 11... Qxd6 {[%clk 0:01:50]} 12. Bf4 {[%clk
0:02:28.4]} 12... Qe6+ {[%clk 0:01:50.2]} 13. Be2 {[%clk 0:02:28.7]} 13... Bd6
{[%clk 0:01:47.4]} 14. O-O {[%clk 0:02:13.5]} 14... Bxf4 {[%clk 0:01:38.5]} 15.
Nxf4 {[%clk 0:02:14.4]} 15... Qe5 {[%clk 0:01:38.7]} 16. Nd3 {[%clk 0:01:42.1]}
16... Qf6 {[%clk 0:01:33.3]} 17. Nc5 {[%clk 0:01:35.6]} 17... Nc6 {[%clk
0:01:22.4]} 18. Bg4 {[%clk 0:01:28.7]} 18... d5 {[%clk 0:01:04.4]} 19. Bxc8
{[%clk 0:01:21.1]} 19... Rxc8 {[%clk 0:01:03.8]} 20. Qxd5 {[%clk 0:01:16.6]}
20... Nge7 {[%clk 0:01:03.3]} 21. Qd7+ {[%clk 0:01:15.5]} 21... Kf8 {[%clk
0:01:03.4]} 22. Qxb7 {[%clk 0:01:15.7]} 22... Kg7 {[%clk 0:00:57.8]} 23. Rfe1
{[%clk 0:01:05.7]} 23... Rhe8 {[%clk 0:00:43]} 24. Ne4 {[%clk 0:01:01.5]} 24...
Qf4 {[%clk 0:00:35.2]} 25. g3 {[%clk 0:00:58.6]} 25... Qg4 {[%clk 0:00:30]} 26.
Nd6 {[%clk 0:00:56.9]} 26... Rb8 {[%clk 0:00:17.6]} 27. Nxe8+ {[%clk 0:00:56.7]}
27... Rxe8 {[%clk 0:00:18]} 28. Rad1 {[%clk 0:00:47]} 28... h5 {[%clk
0:00:12.3]} 29. Qd7 {[%clk 0:00:42]} 29... Qf3 {[%clk 0:00:11.6]} 30. Qxe8
{[%clk 0:00:40]} 30... h4 {[%clk 0:00:07.8]} 31. Qd7 {[%clk 0:00:36.2]} 31...
Nf5 {[%clk 0:00:08]} 32. Qd3 {[%clk 0:00:34]} 32... Ncd4 {[%clk 0:00:05.3]} 33.
Qxf3 {[%clk 0:00:32.9]} 33... Nxf3+ {[%clk 0:00:05.5]} 34. Kg2 {[%clk
0:00:33.8]} 34... Nxe1+ {[%clk 0:00:04.2]} 35. Rxe1 {[%clk 0:00:34.7]} 35... Nd4
{[%clk 0:00:04.6]} 36. c4 {[%clk 0:00:34]} 36... h3+ {[%clk 0:00:04.7]} 37. Kxh3
{[%clk 0:00:33.9]} 37... g5 {[%clk 0:00:01.4]} 38. c5 {[%clk 0:00:32.7]} 1-0

[Event "*** Titled Tuesday Blitz"]
[Site "Chess.com"]
[Date "2020.10.20"]
[Round "6"]
[White "Matols"]
[Black "Ajedrez_con_German"]
[Result "1-0"]
[WhiteElo "2273"]
[BlackElo "2445"]
[TimeControl "180+1"]
[EndTime "11:08:26 PDT"]
[Termination "Matols won on time"]

1. d4 {[%clk 0:03:00.9]} 1... d5 {[%clk 0:01:26.3]} 2. c4 {[%clk 0:02:59]} 2...
c6 {[%clk 0:01:26.2]} 3. Nf3 {[%clk 0:02:58.4]} 3... Nf6 {[%clk 0:01:26.2]} 4.
e3 {[%clk 0:02:58.8]} 4... Bg4 {[%clk 0:01:25]} 5. h3 {[%clk 0:02:58.7]} 5...
Bxf3 {[%clk 0:01:25]} 6. Qxf3 {[%clk 0:02:58.4]} 6... e6 {[%clk 0:01:25.9]} 7.
Bd2 {[%clk 0:02:56]} 7... Nbd7 {[%clk 0:01:25.2]} 8. Nc3 {[%clk 0:02:54]} 8...
Bb4 {[%clk 0:01:23.9]} 9. Bd3 {[%clk 0:02:51.9]} 9... O-O {[%clk 0:01:22]} 10.
O-O {[%clk 0:02:51.4]} 10... Ba5 {[%clk 0:01:18.2]} 11. a3 {[%clk 0:02:49]}
11... Re8 {[%clk 0:01:16.6]} 12. b4 {[%clk 0:02:37.3]} 12... Bc7 {[%clk
0:01:16.1]} 13. Rad1 {[%clk 0:02:21.5]} 13... Qe7 {[%clk 0:01:13.6]} 14. e4
{[%clk 0:02:11.8]} 14... dxe4 {[%clk 0:01:11.8]} 15. Nxe4 {[%clk 0:02:10.7]}
15... Nxe4 {[%clk 0:01:12.2]} 16. Bxe4 {[%clk 0:02:10.7]} 16... Rad8 {[%clk
0:01:01]} 17. Bc3 {[%clk 0:02:02.5]} 17... Nf6 {[%clk 0:01:00.1]} 18. Bc2 {[%clk
0:02:02]} 18... Rd7 {[%clk 0:00:56.3]} 19. Rfe1 {[%clk 0:02:00.8]} 19... Red8
{[%clk 0:00:51]} 20. Qe2 {[%clk 0:01:23.2]} 20... Bb6 {[%clk 0:00:45.6]} 21. d5
{[%clk 0:00:54.1]} 21... cxd5 {[%clk 0:00:43.7]} 22. c5 {[%clk 0:00:50.7]} 22...
Bc7 {[%clk 0:00:26.1]} 23. Qd3 {[%clk 0:00:49.6]} 23... g6 {[%clk 0:00:11.8]}
24. Qf3 {[%clk 0:00:30.8]} 24... d4 {[%clk 0:00:09.7]} 25. Bb2 {[%clk
0:00:27.8]} 25... e5 {[%clk 0:00:07.5]} 26. Qxb7 {[%clk 0:00:25.3]} 26... e4
{[%clk 0:00:04.3]} 27. Qc6 {[%clk 0:00:22.9]} 27... Be5 {[%clk 0:00:03.3]} 28.
Bxe4 {[%clk 0:00:20.4]} 28... Nxe4 {[%clk 0:00:03.4]} 29. Qxe4 {[%clk
0:00:19.5]} 29... d3 {[%clk 0:00:01.8]} 30. Bxe5 {[%clk 0:00:18.6]} 30... Rd5
{[%clk 0:00:01.7]} 31. Bb2 {[%clk 0:00:17.3]} 1-0

[Event "*** Titled Tuesday Blitz"]
[Site "Chess.com"]
[Date "2020.10.20"]
[Round "6"]
[White "zverr1"]
[Black "TomiLen"]
[Result "0-1"]
[WhiteElo "2422"]
[BlackElo "2608"]
[TimeControl "180+1"]
[EndTime "11:08:29 PDT"]
[Termination "TomiLen won by resignation"]

1. d4 {[%clk 0:02:53.6]} 1... d5 {[%clk 0:02:59.3]} 2. c4 {[%clk 0:02:52.6]}
2... c6 {[%clk 0:02:59.4]} 3. Nc3 {[%clk 0:02:52.1]} 3... Nf6 {[%clk 0:02:59.6]}
4. Nf3 {[%clk 0:02:53]} 4... dxc4 {[%clk 0:02:59]} 5. e4 {[%clk 0:02:51.2]} 5...
b5 {[%clk 0:02:58.2]} 6. Be2 {[%clk 0:02:48.1]} 6... e6 {[%clk 0:02:57.2]} 7.
O-O {[%clk 0:02:45.5]} 7... Bb7 {[%clk 0:02:54.4]} 8. Qc2 {[%clk 0:02:16.1]}
8... Nbd7 {[%clk 0:02:31]} 9. Rb1 {[%clk 0:02:15.5]} 9... Be7 {[%clk 0:02:26.6]}
10. b3 {[%clk 0:02:15]} 10... b4 {[%clk 0:02:22.7]} 11. bxc4 {[%clk 0:02:14.3]}
11... c5 {[%clk 0:02:03.4]} 12. e5 {[%clk 0:02:08.8]} 12... Ng4 {[%clk
0:02:03.3]} 13. Ne4 {[%clk 0:01:22.5]} 13... cxd4 {[%clk 0:01:56.8]} 14. Bf4
{[%clk 0:01:16.2]} 14... O-O {[%clk 0:01:50]} 15. h3 {[%clk 0:01:13.9]} 15... f5
{[%clk 0:01:41.5]} 16. exf6 {[%clk 0:01:07.4]} 16... Ngxf6 {[%clk 0:01:36]} 17.
Neg5 {[%clk 0:01:04.6]} 17... Nc5 {[%clk 0:01:31.2]} 18. Bd3 {[%clk 0:00:54.3]}
18... h6 {[%clk 0:01:25.5]} 19. Bh7+ {[%clk 0:00:49.5]} 19... Kh8 {[%clk
0:01:25.6]} 20. Ne5 {[%clk 0:00:49.4]} 20... hxg5 {[%clk 0:01:12]} 21. Ng6+
{[%clk 0:00:41.9]} 21... Kxh7 {[%clk 0:01:11.7]} 22. Nxf8+ {[%clk 0:00:32]}
22... Kg8 {[%clk 0:01:11.6]} 23. Bxg5 {[%clk 0:00:21.9]} 23... Be4 {[%clk
0:01:08.1]} 24. Qe2 {[%clk 0:00:21.5]} 24... Qxf8 {[%clk 0:00:56.9]} 25. Rbd1
{[%clk 0:00:16.6]} 25... Rd8 {[%clk 0:00:50.8]} 26. Qb2 {[%clk 0:00:14.8]} 26...
Nd3 {[%clk 0:00:44.4]} 27. Qe2 {[%clk 0:00:12.8]} 27... Nc5 {[%clk 0:00:41.8]}
28. Qb2 {[%clk 0:00:12.9]} 28... e5 {[%clk 0:00:38.5]} 29. f3 {[%clk 0:00:11.9]}
29... Bf5 {[%clk 0:00:36.3]} 30. Rfe1 {[%clk 0:00:12]} 30... Ncd7 {[%clk
0:00:34.2]} 31. Qb3 {[%clk 0:00:10.3]} 31... Qf7 {[%clk 0:00:34.1]} 32. Bd2
{[%clk 0:00:09.6]} 32... a5 {[%clk 0:00:31.1]} 33. a3 {[%clk 0:00:09.7]} 33...
bxa3 {[%clk 0:00:28.5]} 34. Bxa5 {[%clk 0:00:10.6]} 34... Ra8 {[%clk 0:00:28.5]}
35. Bb4 {[%clk 0:00:10.1]} 35... Rb8 {[%clk 0:00:28.2]} 36. Qxa3 {[%clk
0:00:07.6]} 36... Bxb4 {[%clk 0:00:27.9]} 37. Qb3 {[%clk 0:00:07.4]} 37... Bxe1
{[%clk 0:00:27.5]} 0-1

[Event "*** Titled Tuesday Blitz"]
[Site "Chess.com"]
[Date "2020.10.20"]
[Round "6"]
[White "lacafi"]
[Black "LubovMarkelova"]
[Result "1/2-1/2"]
[WhiteElo "2132"]
[BlackElo "2246"]
[TimeControl "180+1"]
[EndTime "11:08:33 PDT"]
[Termination "Game drawn by repetition"]

1. d4 {[%clk 0:03:00.9]} 1... d5 {[%clk 0:02:58.6]} 2. Nf3 {[%clk 0:03:00]} 2...
Nf6 {[%clk 0:02:57.7]} 3. e3 {[%clk 0:03:00.1]} 3... Bg4 {[%clk 0:02:56.8]} 4.
Nbd2 {[%clk 0:03:00.1]} 4... c5 {[%clk 0:02:56.7]} 5. c3 {[%clk 0:02:54.9]} 5...
Nc6 {[%clk 0:02:56.5]} 6. Qa4 {[%clk 0:02:55.2]} 6... Bd7 {[%clk 0:02:50.7]} 7.
dxc5 {[%clk 0:02:52.5]} 7... e5 {[%clk 0:02:46.8]} 8. Qb3 {[%clk 0:02:40.8]}
8... Bxc5 {[%clk 0:02:43.5]} 9. Qxb7 {[%clk 0:02:35.1]} 9... Rb8 {[%clk
0:02:29.5]} 10. Qa6 {[%clk 0:02:34.2]} 10... O-O {[%clk 0:02:23.9]} 11. Be2
{[%clk 0:02:32.4]} 11... Rb6 {[%clk 0:02:14.6]} 12. Qa4 {[%clk 0:02:19.3]} 12...
Nd4 {[%clk 0:02:14.2]} 13. Qd1 {[%clk 0:02:19.8]} 13... Nxe2 {[%clk 0:02:14]}
14. Qxe2 {[%clk 0:02:19.9]} 14... Bb5 {[%clk 0:02:12.8]} 15. Qd1 {[%clk
0:01:53.5]} 15... Re8 {[%clk 0:02:11.3]} 16. b3 {[%clk 0:01:53.1]} 16... d4
{[%clk 0:01:42.7]} 17. c4 {[%clk 0:01:44]} 17... dxe3 {[%clk 0:01:38.4]} 18.
fxe3 {[%clk 0:01:38.3]} 18... Bc6 {[%clk 0:01:31.5]} 19. O-O {[%clk 0:01:26.1]}
19... Bxe3+ {[%clk 0:01:31]} 20. Kh1 {[%clk 0:01:26.6]} 20... Ng4 {[%clk
0:01:28.5]} 21. Qe2 {[%clk 0:01:24.6]} 21... Bd4 {[%clk 0:01:02.1]} 22. Rb1
{[%clk 0:01:17.9]} 22... Bb7 {[%clk 0:00:34.7]} 23. Nxd4 {[%clk 0:01:04.8]}
23... Qxd4 {[%clk 0:00:32.2]} 24. Bb2 {[%clk 0:01:04]} 24... Qd7 {[%clk
0:00:24.8]} 25. Ne4 {[%clk 0:00:57.7]} 25... Bxe4 {[%clk 0:00:21.1]} 26. Qxe4
{[%clk 0:00:55.9]} 26... Rg6 {[%clk 0:00:21.1]} 27. Qe2 {[%clk 0:00:37.1]} 27...
Qe6 {[%clk 0:00:15.5]} 28. c5 {[%clk 0:00:33.9]} 28... Nf6 {[%clk 0:00:13.1]}
29. Rbd1 {[%clk 0:00:32]} 29... Nd5 {[%clk 0:00:12.7]} 30. Qe4 {[%clk
0:00:28.8]} 30... Nf4 {[%clk 0:00:12.8]} 31. g3 {[%clk 0:00:23.4]} 31... Rxg3
{[%clk 0:00:06]} 32. hxg3 {[%clk 0:00:20.2]} 32... Qh3+ {[%clk 0:00:06]} 33. Kg1
{[%clk 0:00:19.8]} 33... Qxg3+ {[%clk 0:00:06.2]} 34. Kh1 {[%clk 0:00:20]} 34...
Qh3+ {[%clk 0:00:06.3]} 35. Kg1 {[%clk 0:00:20]} 35... Qg3+ {[%clk 0:00:06.4]}
36. Kh1 {[%clk 0:00:20.1]} 36... Qh3+ {[%clk 0:00:06.2]} 37. Kg1 {[%clk
0:00:20.2]} 37... Qg3+ {[%clk 0:00:06]} 1/2-1/2

[Event "*** Titled Tuesday Blitz"]
[Site "Chess.com"]
[Date "2020.10.20"]
[Round "6"]
[White "Shivagami"]
[Black "tteshan"]
[Result "0-1"]
[WhiteElo "2246"]
[BlackElo "2395"]
[TimeControl "180+1"]
[EndTime "11:08:34 PDT"]
[Termination "tteshan won on time"]

1. d4 {[%clk 0:03:00.9]} 1... d5 {[%clk 0:02:59.8]} 2. c4 {[%clk 0:02:59.7]}
2... dxc4 {[%clk 0:03:00.7]} 3. e4 {[%clk 0:02:59.4]} 3... e5 {[%clk 0:02:59.6]}
4. Nf3 {[%clk 0:02:52.5]} 4... Bb4+ {[%clk 0:02:59.5]} 5. Bd2 {[%clk 0:02:48.3]}
5... Bxd2+ {[%clk 0:02:59]} 6. Qxd2 {[%clk 0:02:47.9]} 6... exd4 {[%clk
0:02:56.6]} 7. Qxd4 {[%clk 0:02:46.6]} 7... Nf6 {[%clk 0:02:53.1]} 8. Qxd8+
{[%clk 0:02:40.7]} 8... Kxd8 {[%clk 0:02:54]} 9. Nc3 {[%clk 0:02:41]} 9... Re8
{[%clk 0:02:47.8]} 10. O-O-O+ {[%clk 0:02:38.4]} 10... Ke7 {[%clk 0:02:48.1]}
11. e5 {[%clk 0:02:31.9]} 11... Nfd7 {[%clk 0:02:46.8]} 12. Bxc4 {[%clk
0:02:17.7]} 12... Kf8 {[%clk 0:02:44.4]} 13. Rhe1 {[%clk 0:02:11.5]} 13... c6
{[%clk 0:02:40]} 14. Ne4 {[%clk 0:02:04.3]} 14... Nb6 {[%clk 0:02:29.2]} 15. Bb3
{[%clk 0:02:02.9]} 15... Be6 {[%clk 0:02:13.2]} 16. Bxe6 {[%clk 0:01:32.4]}
16... fxe6 {[%clk 0:02:12.3]} 17. Nd6 {[%clk 0:00:55.9]} 17... Re7 {[%clk
0:02:06.4]} 18. Re4 {[%clk 0:00:54.5]} 18... Nd5 {[%clk 0:02:01.1]} 19. Ng5
{[%clk 0:00:49.4]} 19... h6 {[%clk 0:01:55.5]} 20. Nf3 {[%clk 0:00:45.6]} 20...
Na6 {[%clk 0:01:48.1]} 21. Nh4 {[%clk 0:00:44.1]} 21... Kg8 {[%clk 0:01:44.1]}
22. Rd3 {[%clk 0:00:42.8]} 22... Nc5 {[%clk 0:01:40.1]} 23. Rg3 {[%clk
0:00:32.9]} 23... Nxe4 {[%clk 0:01:38.5]} 24. Nxe4 {[%clk 0:00:33.5]} 24... Rf7
{[%clk 0:01:26]} 25. f3 {[%clk 0:00:30.7]} 25... Ne3 {[%clk 0:01:17.1]} 26. Nd6
{[%clk 0:00:25.4]} 26... Rd7 {[%clk 0:01:12.1]} 27. f4 {[%clk 0:00:20.3]} 27...
Nd5 {[%clk 0:01:06.3]} 28. f5 {[%clk 0:00:20.6]} 28... exf5 {[%clk 0:01:00]} 29.
Nhxf5 {[%clk 0:00:20.8]} 29... Kh7 {[%clk 0:00:34.7]} 30. e6 {[%clk 0:00:20.4]}
30... Rc7 {[%clk 0:00:33.5]} 31. Nf7 {[%clk 0:00:19.7]} 31... Rg8 {[%clk
0:00:29.4]} 32. Ne5 {[%clk 0:00:06.2]} 32... Nf4 {[%clk 0:00:27.7]} 33. e7
{[%clk 0:00:04.5]} 33... g5 {[%clk 0:00:24]} 34. Re3 {[%clk 0:00:03.7]} 34...
Nd5 {[%clk 0:00:23.4]} 35. Re2 {[%clk 0:00:03.1]} 35... Nxe7 {[%clk 0:00:22.5]}
0-1

[Event "*** Titled Tuesday Blitz"]
[Site "Chess.com"]
[Date "2020.10.20"]
[Round "6"]
[White "vovachesss"]
[Black "Omk124"]
[Result "1-0"]
[WhiteElo "2689"]
[BlackElo "2488"]
[TimeControl "180+1"]
[EndTime "11:08:37 PDT"]
[Termination "vovachesss won by resignation"]

1. e4 {[%clk 0:03:00.9]} 1... g6 {[%clk 0:02:59.8]} 2. h4 {[%clk 0:02:50.6]}
2... d5 {[%clk 0:02:58.9]} 3. exd5 {[%clk 0:02:49.8]} 3... Qxd5 {[%clk
0:02:59.8]} 4. Nc3 {[%clk 0:02:49.8]} 4... Qa5 {[%clk 0:03:00.3]} 5. h5 {[%clk
0:02:48.8]} 5... Bg7 {[%clk 0:02:59.6]} 6. Bc4 {[%clk 0:02:46.1]} 6... Nc6
{[%clk 0:02:57.2]} 7. Nge2 {[%clk 0:02:30]} 7... Bg4 {[%clk 0:02:54.4]} 8. f3
{[%clk 0:02:26.3]} 8... Bxh5 {[%clk 0:02:40.9]} 9. g4 {[%clk 0:02:22.9]} 9...
Ne5 {[%clk 0:02:41.1]} 10. Bd5 {[%clk 0:02:10.8]} 10... c6 {[%clk 0:02:40.5]}
11. d4 {[%clk 0:01:55.3]} 11... Nxg4 {[%clk 0:02:34.3]} 12. fxg4 {[%clk
0:01:55]} 12... Bxg4 {[%clk 0:02:35.2]} 13. Bb3 {[%clk 0:01:28]} 13... O-O-O
{[%clk 0:02:34.2]} 14. Be3 {[%clk 0:01:26.9]} 14... h5 {[%clk 0:02:29.1]} 15.
Qd2 {[%clk 0:01:26.2]} 15... Nh6 {[%clk 0:02:26.5]} 16. O-O-O {[%clk 0:01:21.8]}
16... e6 {[%clk 0:02:25.6]} 17. Bg5 {[%clk 0:01:09.9]} 17... Rd7 {[%clk
0:02:20.6]} 18. Rdf1 {[%clk 0:00:48.2]} 18... Nf5 {[%clk 0:02:15.8]} 19. Qf4
{[%clk 0:00:24.6]} 19... Bxd4 {[%clk 0:02:10.3]} 20. Nxd4 {[%clk 0:00:21.6]}
20... Rxd4 {[%clk 0:02:09.9]} 21. Qf2 {[%clk 0:00:21.5]} 21... Rd7 {[%clk
0:02:05.2]} 22. Bf6 {[%clk 0:00:21.5]} 22... Re8 {[%clk 0:02:03.5]} 23. Ne4
{[%clk 0:00:20.6]} 23... Qb6 {[%clk 0:01:43.4]} 24. Qf4 {[%clk 0:00:18.2]} 24...
Ne3 {[%clk 0:01:36.7]} 25. Nd6+ {[%clk 0:00:13.7]} 25... Rxd6 {[%clk 0:01:31.8]}
26. Qxd6 {[%clk 0:00:14.6]} 26... Nxf1 {[%clk 0:01:32]} 27. Rxf1 {[%clk
0:00:15.2]} 27... Qc7 {[%clk 0:01:29.5]} 28. Qd4 {[%clk 0:00:13]} 28... Bf5
{[%clk 0:01:29.1]} 29. Qxa7 {[%clk 0:00:12.6]} 29... e5 {[%clk 0:01:25.3]} 30.
Re1 {[%clk 0:00:11]} 30... e4 {[%clk 0:01:24.4]} 31. Bd4 {[%clk 0:00:10.1]}
31... h4 {[%clk 0:01:23]} 32. Bb6 {[%clk 0:00:10]} 32... Qb8 {[%clk 0:01:22.5]}
33. Qa5 {[%clk 0:00:08.6]} 33... h3 {[%clk 0:01:15.6]} 34. Bxf7 {[%clk
0:00:08.8]} 34... Re5 {[%clk 0:01:15.4]} 35. Qa3 {[%clk 0:00:07]} 35... c5
{[%clk 0:01:02]} 36. Bxc5 {[%clk 0:00:06.2]} 36... Qc7 {[%clk 0:01:02]} 37. Bd6
{[%clk 0:00:05.7]} 37... Qxf7 {[%clk 0:00:57.3]} 38. Bxe5 {[%clk 0:00:05.1]}
38... e3 {[%clk 0:00:46.4]} 39. Qc5+ {[%clk 0:00:05]} 39... Kd8 {[%clk
0:00:46.4]} 40. Rd1+ {[%clk 0:00:04.5]} 40... Bd7 {[%clk 0:00:46.2]} 41. Qb6+
{[%clk 0:00:03.6]} 41... Ke8 {[%clk 0:00:46.3]} 42. Qd6 {[%clk 0:00:03]} 42...
e2 {[%clk 0:00:44.2]} 43. Re1 {[%clk 0:00:03.5]} 43... Qf3 {[%clk 0:00:42.4]}
44. Qxg6+ {[%clk 0:00:03.3]} 44... Kd8 {[%clk 0:00:42.2]} 45. Qg5+ {[%clk
0:00:03.9]} 45... Kc8 {[%clk 0:00:42.3]} 46. Qg8+ {[%clk 0:00:04]} 1-0